[Event "*** Biggest EVER Titled Tuesday"]
[Site "Chess.com"]
[Date "2018.04.17"]
[Round "9"]
[White "Raffael89"]
[Black "PawnEatingZombie"]
[Result "0-1"]
[WhiteElo "2112"]
[BlackElo "2039"]
[TimeControl "180+2"]
[EndTime "15:06:49 PDT"]
[Termination "PawnEatingZombie won by resignation"]

1. e4 {[%clk 0:03:01.9]} 1... c5 {[%clk 0:03:00.5]} 2. Nc3 {[%clk 0:03:01.9]}
2... Nc6 {[%clk 0:03:01.4]} 3. f4 {[%clk 0:03:03.3]} 3... g6 {[%clk 0:03:00.4]}
4. Nf3 {[%clk 0:03:04.4]} 4... Bg7 {[%clk 0:03:01.7]} 5. Bb5 {[%clk 0:03:05.8]}
5... Nd4 {[%clk 0:03:01.5]} 6. O-O {[%clk 0:03:07.2]} 6... e6 {[%clk 0:03:00]}
7. e5 {[%clk 0:03:03.3]} 7... Ne7 {[%clk 0:03:00]} 8. Nxd4 {[%clk 0:02:59.2]}
8... cxd4 {[%clk 0:03:00.1]} 9. Ne4 {[%clk 0:03:00.3]} 9... O-O {[%clk
0:02:52.5]} 10. Nd6 {[%clk 0:02:59]} 10... f6 {[%clk 0:02:45.9]} 11. Qe2 {[%clk
0:02:42.7]} 11... fxe5 {[%clk 0:02:44.7]} 12. fxe5 {[%clk 0:02:44.6]} 12...
Rxf1+ {[%clk 0:02:42.4]} 13. Kxf1 {[%clk 0:02:46.5]} 13... Nf5 {[%clk
0:02:26.1]} 14. Nxf5 {[%clk 0:02:15]} 14... gxf5 {[%clk 0:02:25.9]} 15. d3
{[%clk 0:02:14.9]} 15... a6 {[%clk 0:02:15.4]} 16. Bc4 {[%clk 0:02:14.3]} 16...
b5 {[%clk 0:02:16.6]} 17. Bb3 {[%clk 0:02:15]} 17... Bb7 {[%clk 0:02:17.6]} 18.
Bf4 {[%clk 0:02:13.6]} 18... Qc7 {[%clk 0:02:11.2]} 19. Kg1 {[%clk 0:02:02.8]}
19... Kh8 {[%clk 0:02:09.7]} 20. Rf1 {[%clk 0:01:55]} 20... Rg8 {[%clk
0:02:08.9]} 21. Rf2 {[%clk 0:01:56.1]} 21... Qc6 {[%clk 0:02:02.6]} 22. h3
{[%clk 0:01:30]} 22... Bf8 {[%clk 0:02:01.9]} 23. Kh2 {[%clk 0:01:28.2]} 23...
a5 {[%clk 0:02:01.8]} 24. a3 {[%clk 0:01:22.2]} 24... a4 {[%clk 0:01:54.9]} 25.
Ba2 {[%clk 0:01:22.9]} 25... Be7 {[%clk 0:01:42.1]} 26. Bg3 {[%clk 0:01:14.1]}
26... b4 {[%clk 0:01:28.1]} 27. axb4 {[%clk 0:01:14]} 27... Bxb4 {[%clk
0:01:28.3]} 28. Bc4 {[%clk 0:01:15.3]} 28... Bf8 {[%clk 0:01:16.4]} 29. Bh4
{[%clk 0:01:15.3]} 29... Bg7 {[%clk 0:01:11.1]} 30. Bf6 {[%clk 0:01:16.1]} 30...
Qc7 {[%clk 0:00:57.7]} 31. Kg1 {[%clk 0:00:58]} 31... Qb6 {[%clk 0:00:27]} 32.
c3 {[%clk 0:00:40.9]} 32... dxc3 {[%clk 0:00:25.5]} 33. bxc3 {[%clk 0:00:42.8]}
33... Bxf6 {[%clk 0:00:26.6]} 34. exf6 {[%clk 0:00:43.6]} 34... Rxg2+ {[%clk
0:00:27.2]} 35. Kf1 {[%clk 0:00:44]} 35... Rxf2+ {[%clk 0:00:25.1]} 36. Qxf2
{[%clk 0:00:43.1]} 36... Qxf2+ {[%clk 0:00:26.7]} 37. Kxf2 {[%clk 0:00:44.2]}
37... Kg8 {[%clk 0:00:28.2]} 38. Ke3 {[%clk 0:00:40.3]} 38... Kf7 {[%clk
0:00:28.4]} 39. Kd4 {[%clk 0:00:37.8]} 39... d6 {[%clk 0:00:27.7]} 40. Bb5
{[%clk 0:00:37.7]} 40... a3 {[%clk 0:00:27.7]} 41. Bc4 {[%clk 0:00:36.5]} 41...
Bd5 {[%clk 0:00:23.6]} 0-1

[Event "*** Biggest EVER Titled Tuesday"]
[Site "Chess.com"]
[Date "2018.04.17"]
[Round "9"]
[White "GMVallejo"]
[Black "Saitama_Hero"]
[Result "1-0"]
[WhiteElo "2756"]
[BlackElo "2168"]
[TimeControl "180+2"]
[EndTime "15:06:54 PDT"]
[Termination "GMVallejo won by checkmate"]

1. e4 {[%clk 0:03:01.9]} 1... d6 {[%clk 0:02:58.2]} 2. d4 {[%clk 0:03:02.4]}
2... Nf6 {[%clk 0:02:58.9]} 3. Nc3 {[%clk 0:03:03]} 3... c6 {[%clk 0:03:00.2]}
4. f4 {[%clk 0:02:39.3]} 4... Qa5 {[%clk 0:02:57.1]} 5. e5 {[%clk 0:02:38.5]}
5... Ne4 {[%clk 0:02:56.3]} 6. Qf3 {[%clk 0:02:38.9]} 6... Nxc3 {[%clk
0:02:53.2]} 7. Bd2 {[%clk 0:02:38.6]} 7... h5 {[%clk 0:02:40.9]} 8. Bxc3 {[%clk
0:02:24.4]} 8... Qb6 {[%clk 0:02:42.3]} 9. Bd3 {[%clk 0:02:10.5]} 9... dxe5
{[%clk 0:02:34.1]} 10. fxe5 {[%clk 0:02:09]} 10... g6 {[%clk 0:02:20.6]} 11. Nh3
{[%clk 0:01:57.3]} 11... Bg4 {[%clk 0:02:13.3]} 12. Qf2 {[%clk 0:01:53.1]} 12...
Bh6 {[%clk 0:01:53]} 13. O-O {[%clk 0:01:52.7]} 13... O-O {[%clk 0:01:44.2]} 14.
Nf4 {[%clk 0:01:49.4]} 14... Na6 {[%clk 0:01:24]} 15. h3 {[%clk 0:01:44.5]}
15... Bd7 {[%clk 0:01:24.8]} 16. Qg3 {[%clk 0:01:16]} 16... c5 {[%clk
0:01:24.1]} 17. Nd5 {[%clk 0:00:55.1]} 17... Qe6 {[%clk 0:01:08.9]} 18. Rf6
{[%clk 0:00:43]} 18... exf6 {[%clk 0:00:42.7]} 19. Nxf6+ {[%clk 0:00:42.6]}
19... Kh8 {[%clk 0:00:42.1]} 20. d5 {[%clk 0:00:43.7]} 20... Qe7 {[%clk
0:00:27.7]} 21. Nxd7 {[%clk 0:00:42.2]} 21... Bg7 {[%clk 0:00:18.5]} 22. Nxf8
{[%clk 0:00:40.9]} 22... Rxf8 {[%clk 0:00:20.4]} 23. a3 {[%clk 0:00:36.1]} 23...
Re8 {[%clk 0:00:17.2]} 24. Re1 {[%clk 0:00:35.2]} 24... Nb8 {[%clk 0:00:16.6]}
25. Bb5 {[%clk 0:00:30.8]} 25... Rf8 {[%clk 0:00:14.6]} 26. d6 {[%clk
0:00:27.5]} 26... Qe6 {[%clk 0:00:14.1]} 27. Qd3 {[%clk 0:00:25.6]} 27... a6
{[%clk 0:00:11.9]} 28. Bc4 {[%clk 0:00:25.8]} 28... Qd7 {[%clk 0:00:13.4]} 29.
e6 {[%clk 0:00:23.9]} 29... fxe6 {[%clk 0:00:12.6]} 30. Bxe6 {[%clk 0:00:21.3]}
30... Qd8 {[%clk 0:00:13.4]} 31. Qxg6 {[%clk 0:00:16.6]} 31... Bxc3 {[%clk
0:00:02.7]} 32. Qh6# {[%clk 0:00:16.8]} 1-0

[Event "*** Biggest EVER Titled Tuesday"]
[Site "Chess.com"]
[Date "2018.04.17"]
[Round "9"]
[White "AbdAlAgathos"]
[Black "patzerplay"]
[Result "0-1"]
[WhiteElo "2344"]
[BlackElo "2318"]
[TimeControl "180+2"]
[EndTime "15:06:56 PDT"]
[Termination "patzerplay won by resignation"]

1. e4 {[%clk 0:03:01.9]} 1... c5 {[%clk 0:03:00.1]} 2. Nf3 {[%clk 0:03:02.9]}
2... d6 {[%clk 0:03:01.1]} 3. c3 {[%clk 0:03:04.1]} 3... Nf6 {[%clk 0:03:01.5]}
4. Be2 {[%clk 0:03:05.3]} 4... Nc6 {[%clk 0:03:00.6]} 5. d4 {[%clk 0:03:06]}
5... cxd4 {[%clk 0:03:00.8]} 6. cxd4 {[%clk 0:03:07.9]} 6... e6 {[%clk
0:02:58.6]} 7. Nc3 {[%clk 0:03:06.9]} 7... Be7 {[%clk 0:02:59.3]} 8. O-O {[%clk
0:03:07.5]} 8... O-O {[%clk 0:03:00.1]} 9. h3 {[%clk 0:02:51.4]} 9... b6 {[%clk
0:02:59.2]} 10. Be3 {[%clk 0:02:50.2]} 10... Bb7 {[%clk 0:03:00.1]} 11. a3
{[%clk 0:02:45.5]} 11... Rc8 {[%clk 0:02:59.9]} 12. Rc1 {[%clk 0:02:43.9]} 12...
Re8 {[%clk 0:02:51.8]} 13. Nd2 {[%clk 0:02:37.5]} 13... Bf8 {[%clk 0:02:51.4]}
14. f4 {[%clk 0:02:36.8]} 14... e5 {[%clk 0:02:47.6]} 15. fxe5 {[%clk
0:02:32.2]} 15... dxe5 {[%clk 0:02:48.1]} 16. d5 {[%clk 0:02:33.1]} 16... Nd4
{[%clk 0:02:48.9]} 17. Bc4 {[%clk 0:02:19.9]} 17... a6 {[%clk 0:02:35.4]} 18.
Ba2 {[%clk 0:02:18.4]} 18... b5 {[%clk 0:02:35.5]} 19. Qe1 {[%clk 0:02:12.3]}
19... Bc5 {[%clk 0:02:32.7]} 20. Kh2 {[%clk 0:02:08.9]} 20... Kh8 {[%clk
0:02:31.3]} 21. Bg5 {[%clk 0:02:03]} 21... Be7 {[%clk 0:02:27.5]} 22. Qh4 {[%clk
0:02:00.8]} 22... h6 {[%clk 0:02:07.8]} 23. d6 {[%clk 0:01:59.1]} 23... Qxd6
{[%clk 0:02:02.9]} 24. Bxf7 {[%clk 0:01:40.6]} 24... Rf8 {[%clk 0:01:53.9]} 25.
Ba2 {[%clk 0:01:37.2]} 25... Ng4+ {[%clk 0:01:40.7]} 26. Qxg4 {[%clk 0:01:33.2]}
26... Bxg5 {[%clk 0:01:42]} 27. Rcd1 {[%clk 0:01:19.6]} 27... Bf4+ {[%clk
0:01:25.4]} 28. Kh1 {[%clk 0:01:14.6]} 28... Qf6 {[%clk 0:00:46.9]} 29. Bd5
{[%clk 0:01:02.6]} 29... Bxd5 {[%clk 0:00:25.9]} 30. Nxd5 {[%clk 0:01:03.7]}
30... Qg5 {[%clk 0:00:26.1]} 31. Qxg5 {[%clk 0:00:40.1]} 31... Bxg5 {[%clk
0:00:27.1]} 32. Nf3 {[%clk 0:00:28.4]} 32... Nxf3 {[%clk 0:00:27.7]} 33. Rxf3
{[%clk 0:00:29.1]} 33... Rxf3 {[%clk 0:00:28.6]} 34. gxf3 {[%clk 0:00:31]} 34...
Rc2 {[%clk 0:00:29.7]} 35. b4 {[%clk 0:00:25.8]} 35... Kh7 {[%clk 0:00:30.3]}
36. Rd3 {[%clk 0:00:25.2]} 36... Bh4 {[%clk 0:00:30.4]} 37. Ne3 {[%clk
0:00:21.5]} 37... Rf2 {[%clk 0:00:26.4]} 38. Nf5 {[%clk 0:00:21.8]} 38... Bf6
{[%clk 0:00:27]} 39. Rd6 {[%clk 0:00:19.4]} 39... Rxf3 {[%clk 0:00:26.2]} 40.
Kg2 {[%clk 0:00:19.8]} 40... Rxa3 {[%clk 0:00:26.7]} 41. Rb6 {[%clk 0:00:18.7]}
41... Ra4 {[%clk 0:00:26.5]} 42. Rxa6 {[%clk 0:00:19.7]} 42... Rxa6 {[%clk
0:00:27.2]} 0-1

[Event "*** Biggest EVER Titled Tuesday"]
[Site "Chess.com"]
[Date "2018.04.17"]
[Round "9"]
[White "champ2005"]
[Black "GMKrikor"]
[Result "0-1"]
[WhiteElo "2613"]
[BlackElo "2641"]
[TimeControl "180+2"]
[EndTime "15:07:09 PDT"]
[Termination "GMKrikor won by checkmate"]

1. e4 {[%clk 0:03:00.9]} 1... e5 {[%clk 0:02:58.6]} 2. Nf3 {[%clk 0:03:01.9]}
2... Nc6 {[%clk 0:02:59.7]} 3. Bc4 {[%clk 0:03:02.7]} 3... Bc5 {[%clk
0:02:59.6]} 4. O-O {[%clk 0:03:03.5]} 4... Nf6 {[%clk 0:02:57.4]} 5. d3 {[%clk
0:03:04.8]} 5... d6 {[%clk 0:02:51.5]} 6. c3 {[%clk 0:03:05.4]} 6... a5 {[%clk
0:02:51.1]} 7. a4 {[%clk 0:03:06.3]} 7... O-O {[%clk 0:02:47.5]} 8. Bg5 {[%clk
0:03:06.8]} 8... h6 {[%clk 0:02:48.3]} 9. Bh4 {[%clk 0:03:07.3]} 9... g5 {[%clk
0:02:47.7]} 10. Bg3 {[%clk 0:03:08.4]} 10... Kg7 {[%clk 0:02:41.7]} 11. Na3
{[%clk 0:03:01.9]} 11... Nh7 {[%clk 0:02:16.9]} 12. Nc2 {[%clk 0:03:00.4]} 12...
Ba7 {[%clk 0:01:58.5]} 13. Ne3 {[%clk 0:02:54.8]} 13... h5 {[%clk 0:01:29.5]}
14. h4 {[%clk 0:02:54.9]} 14... g4 {[%clk 0:01:28]} 15. Nd2 {[%clk 0:02:55.3]}
15... Ne7 {[%clk 0:01:24.5]} 16. Qe2 {[%clk 0:02:52.3]} 16... Ng6 {[%clk
0:01:23.5]} 17. Nb3 {[%clk 0:02:36.2]} 17... Nxh4 {[%clk 0:01:18.8]} 18. d4
{[%clk 0:02:37]} 18... Ng6 {[%clk 0:01:16.9]} 19. Nf5+ {[%clk 0:02:28.9]} 19...
Bxf5 {[%clk 0:01:16.2]} 20. exf5 {[%clk 0:02:30.8]} 20... Nf4 {[%clk 0:01:15.7]}
21. Qe4 {[%clk 0:02:17.8]} 21... Ng5 {[%clk 0:00:53.3]} 22. Qxb7 {[%clk
0:02:16.9]} 22... h4 {[%clk 0:00:52.4]} 23. Bh2 {[%clk 0:02:16]} 23... Bb6
{[%clk 0:00:39.1]} 24. dxe5 {[%clk 0:02:13.9]} 24... dxe5 {[%clk 0:00:40]} 25.
Qc6 {[%clk 0:02:11]} 25... g3 {[%clk 0:00:37.3]} 26. Rad1 {[%clk 0:02:11.8]}
26... Qf6 {[%clk 0:00:36.5]} 27. Qxf6+ {[%clk 0:02:11.7]} 27... Kxf6 {[%clk
0:00:37.2]} 28. Kh1 {[%clk 0:02:05.5]} 28... gxh2 {[%clk 0:00:37.4]} 29. Kxh2
{[%clk 0:02:06.8]} 29... Rad8 {[%clk 0:00:37.4]} 30. Nd2 {[%clk 0:02:02.4]}
30... Kxf5 {[%clk 0:00:31.2]} 31. Kh1 {[%clk 0:01:57.9]} 31... Kg6 {[%clk
0:00:31.5]} 32. g3 {[%clk 0:01:59.2]} 32... hxg3 {[%clk 0:00:32]} 33. fxg3
{[%clk 0:02:00.4]} 33... Nd3 {[%clk 0:00:28.4]} 34. Bxd3+ {[%clk 0:01:54]} 34...
Rxd3 {[%clk 0:00:28.9]} 35. Nc4 {[%clk 0:01:55.5]} 35... Rxg3 {[%clk 0:00:27.5]}
36. Nxe5+ {[%clk 0:01:55.9]} 36... Kg7 {[%clk 0:00:29.1]} 37. Kh2 {[%clk
0:01:55.8]} 37... Re3 {[%clk 0:00:24.9]} 38. Rde1 {[%clk 0:01:55.1]} 38... Rxe1
{[%clk 0:00:24.6]} 39. Rxe1 {[%clk 0:01:55.4]} 39... f6 {[%clk 0:00:26.2]} 40.
Kg2 {[%clk 0:01:50.5]} 40... fxe5 {[%clk 0:00:27.2]} 41. Rxe5 {[%clk 0:01:51.7]}
41... Rf2+ {[%clk 0:00:21.7]} 42. Kg3 {[%clk 0:01:51.1]} 42... Kf6 {[%clk
0:00:21.2]} 43. Rb5 {[%clk 0:01:52.1]} 43... Ne4+ {[%clk 0:00:21]} 44. Kg4
{[%clk 0:01:53.5]} 44... Nd6 {[%clk 0:00:21.2]} 45. Rh5 {[%clk 0:01:50.1]} 45...
Rxb2 {[%clk 0:00:21.6]} 46. Rh6+ {[%clk 0:01:51.3]} 46... Ke5 {[%clk 0:00:22.6]}
47. Kf3 {[%clk 0:01:52.7]} 47... Rb3 {[%clk 0:00:22.3]} 48. Rh5+ {[%clk
0:01:53.9]} 48... Ke6 {[%clk 0:00:23.3]} 49. Ke2 {[%clk 0:01:53.4]} 49... Rxc3
{[%clk 0:00:24.4]} 50. Kd2 {[%clk 0:01:54.6]} 50... Rc4 {[%clk 0:00:25.8]} 51.
Kd3 {[%clk 0:01:55.7]} 51... Rxa4 {[%clk 0:00:26.4]} 52. Rh6+ {[%clk 0:01:57.3]}
52... Kd7 {[%clk 0:00:27.7]} 53. Rh5 {[%clk 0:01:58.6]} 53... Kc6 {[%clk
0:00:28.3]} 54. Kc2 {[%clk 0:01:59.9]} 54... Ra3 {[%clk 0:00:28.9]} 55. Kb2
{[%clk 0:02:01.1]} 55... Rf3 {[%clk 0:00:29.2]} 56. Ka2 {[%clk 0:02:02.1]} 56...
a4 {[%clk 0:00:29.8]} 57. Rg5 {[%clk 0:02:02.8]} 57... Bc5 {[%clk 0:00:30.8]}
58. Rh5 {[%clk 0:02:03.7]} 58... Rf2+ {[%clk 0:00:32.1]} 59. Kb1 {[%clk
0:02:03.9]} 59... Nb5 {[%clk 0:00:28.5]} 60. Rh4 {[%clk 0:02:03.9]} 60... a3
{[%clk 0:00:27.5]} 61. Rc4 {[%clk 0:01:53]} 61... Kd5 {[%clk 0:00:26.8]} 62. Rh4
{[%clk 0:01:52.8]} 62... Nc3+ {[%clk 0:00:27.5]} 63. Kc1 {[%clk 0:01:53.5]}
63... Be3# {[%clk 0:00:28.5]} 0-1

[Event "*** Biggest EVER Titled Tuesday"]
[Site "Chess.com"]
[Date "2018.04.17"]
[Round "9"]
[White "Kozok"]
[Black "StoreySniper"]
[Result "0-1"]
[WhiteElo "2206"]
[BlackElo "2245"]
[TimeControl "180+2"]
[EndTime "15:07:11 PDT"]
[Termination "StoreySniper won by resignation"]

1. e4 {[%clk 0:03:01.9]} 1... g6 {[%clk 0:02:54.8]} 2. d4 {[%clk 0:03:00.7]}
2... Bg7 {[%clk 0:02:55.3]} 3. Nc3 {[%clk 0:03:00.4]} 3... c5 {[%clk 0:02:56.2]}
4. dxc5 {[%clk 0:02:57.7]} 4... Bxc3+ {[%clk 0:02:52.1]} 5. bxc3 {[%clk
0:02:58.3]} 5... Nf6 {[%clk 0:02:52.8]} 6. e5 {[%clk 0:02:42.9]} 6... Ne4 {[%clk
0:02:53.3]} 7. Qd4 {[%clk 0:02:39.6]} 7... Qa5 {[%clk 0:02:54]} 8. e6 {[%clk
0:02:20.6]} 8... f6 {[%clk 0:02:51.2]} 9. exd7+ {[%clk 0:01:55.9]} 9... Bxd7
{[%clk 0:02:53]} 10. Bb2 {[%clk 0:01:51.2]} 10... Nxc5 {[%clk 0:02:46.9]} 11.
Bc4 {[%clk 0:01:36.5]} 11... Nc6 {[%clk 0:02:41.2]} 12. Qe3 {[%clk 0:01:32]}
12... Na4 {[%clk 0:02:32.9]} 13. Rb1 {[%clk 0:01:13.4]} 13... Ne5 {[%clk
0:02:21.5]} 14. Bb3 {[%clk 0:01:04.5]} 14... Nxb2 {[%clk 0:02:21.7]} 15. Rxb2
{[%clk 0:01:05.1]} 15... Qa3 {[%clk 0:01:59.3]} 16. Rb1 {[%clk 0:01:01.3]} 16...
Bc6 {[%clk 0:01:57.9]} 17. Nf3 {[%clk 0:00:59.1]} 17... Nxf3+ {[%clk 0:01:38.5]}
18. gxf3 {[%clk 0:00:58.5]} 18... O-O-O {[%clk 0:01:39.3]} 19. O-O {[%clk
0:00:50.2]} 19... e5 {[%clk 0:01:35.9]} 20. c4 {[%clk 0:00:41]} 20... Rd4 {[%clk
0:01:28.7]} 21. c3 {[%clk 0:00:40]} 21... Rf4 {[%clk 0:01:25]} 22. Rfd1 {[%clk
0:00:14.6]} 22... Rxf3 {[%clk 0:01:20.7]} 23. Qd2 {[%clk 0:00:15.4]} 23... Rf4
{[%clk 0:01:08.2]} 24. c5 {[%clk 0:00:15.3]} 24... Qxc5 {[%clk 0:00:51.6]} 25.
Be6+ {[%clk 0:00:15.8]} 25... Kb8 {[%clk 0:00:47.3]} 26. c4 {[%clk 0:00:16.2]}
26... f5 {[%clk 0:00:35.8]} 27. Bd5 {[%clk 0:00:11.1]} 27... Rd4 {[%clk
0:00:30.9]} 28. Qb2 {[%clk 0:00:06.6]} 28... Bxd5 {[%clk 0:00:23.8]} 29. cxd5
{[%clk 0:00:07.4]} 29... Qxd5 {[%clk 0:00:23.3]} 30. Rxd4 {[%clk 0:00:05.2]}
30... exd4 {[%clk 0:00:24.3]} 31. Rd1 {[%clk 0:00:06.5]} 31... Rd8 {[%clk
0:00:24.9]} 32. Rd3 {[%clk 0:00:08.1]} 32... a6 {[%clk 0:00:25.1]} 33. Qd2
{[%clk 0:00:09.7]} 33... Ka8 {[%clk 0:00:25.6]} 34. Qb4 {[%clk 0:00:10.3]} 34...
Qd6 {[%clk 0:00:25.4]} 35. Qb3 {[%clk 0:00:10.8]} 35... Qd5 {[%clk 0:00:26.5]}
36. Qb4 {[%clk 0:00:12]} 36... f4 {[%clk 0:00:26.9]} 37. Rb3 {[%clk 0:00:13.1]}
37... f3 {[%clk 0:00:24.5]} 38. h4 {[%clk 0:00:13.4]} 38... g5 {[%clk
0:00:24.1]} 39. Qe7 {[%clk 0:00:14.5]} 39... gxh4 {[%clk 0:00:21.5]} 40. Rxb7
{[%clk 0:00:15.7]} 40... Rg8+ {[%clk 0:00:19.5]} 41. Kh2 {[%clk 0:00:12.8]}
41... Qxb7 {[%clk 0:00:19.5]} 0-1

[Event "*** Biggest EVER Titled Tuesday"]
[Site "Chess.com"]
[Date "2018.04.17"]
[Round "9"]
[White "Alexander_Moskalenko"]
[Black "Fandorine"]
[Result "1-0"]
[WhiteElo "2738"]
[BlackElo "2706"]
[TimeControl "180+2"]
[EndTime "15:07:14 PDT"]
[Termination "Alexander_Moskalenko won by resignation"]

1. e4 {[%clk 0:03:01.9]} 1... g6 {[%clk 0:03:01.1]} 2. d4 {[%clk 0:02:59]} 2...
Bg7 {[%clk 0:03:02.5]} 3. Nf3 {[%clk 0:03:00.6]} 3... d6 {[%clk 0:03:03.8]} 4.
c3 {[%clk 0:03:00.2]} 4... Nf6 {[%clk 0:03:05]} 5. Qc2 {[%clk 0:03:00]} 5... O-O
{[%clk 0:03:05.7]} 6. Be2 {[%clk 0:03:01.5]} 6... Nc6 {[%clk 0:03:02.1]} 7. O-O
{[%clk 0:03:01.4]} 7... Nd7 {[%clk 0:03:03.6]} 8. Bg5 {[%clk 0:02:55.1]} 8...
Qe8 {[%clk 0:03:03.6]} 9. Nbd2 {[%clk 0:02:54.6]} 9... e5 {[%clk 0:03:03.4]} 10.
dxe5 {[%clk 0:02:55.5]} 10... Ncxe5 {[%clk 0:03:03.2]} 11. Nxe5 {[%clk
0:02:56.4]} 11... Qxe5 {[%clk 0:02:49.3]} 12. Bh4 {[%clk 0:02:57.2]} 12... a5
{[%clk 0:02:43.2]} 13. Bg3 {[%clk 0:02:57.7]} 13... Qc5 {[%clk 0:02:44.2]} 14.
Kh1 {[%clk 0:02:55.9]} 14... a4 {[%clk 0:02:44.6]} 15. Rac1 {[%clk 0:02:52.8]}
15... b5 {[%clk 0:02:29.7]} 16. b4 {[%clk 0:02:47.9]} 16... axb3 {[%clk
0:02:25.7]} 17. axb3 {[%clk 0:02:48.9]} 17... Bb7 {[%clk 0:02:25.1]} 18. b4
{[%clk 0:02:49]} 18... Qb6 {[%clk 0:02:23.6]} 19. Nb3 {[%clk 0:02:47.4]} 19...
Rfe8 {[%clk 0:02:21.2]} 20. f3 {[%clk 0:02:48.6]} 20... c5 {[%clk 0:02:03.4]}
21. Rb1 {[%clk 0:02:35.8]} 21... c4 {[%clk 0:02:01.1]} 22. Nd4 {[%clk
0:02:29.7]} 22... Bxd4 {[%clk 0:01:59.7]} 23. cxd4 {[%clk 0:02:31.6]} 23... d5
{[%clk 0:02:01.2]} 24. e5 {[%clk 0:01:10.2]} 24... Qxd4 {[%clk 0:01:44.2]} 25.
f4 {[%clk 0:01:11.3]} 25... Qb6 {[%clk 0:01:14.7]} 26. Rbd1 {[%clk 0:01:07.5]}
26... d4 {[%clk 0:01:13.9]} 27. Bf2 {[%clk 0:01:05.6]} 27... Qc6 {[%clk
0:00:53.8]} 28. Bf3 {[%clk 0:01:06.3]} 28... d3 {[%clk 0:00:54.2]} 29. Rxd3
{[%clk 0:01:01.4]} 29... cxd3 {[%clk 0:00:54.6]} 30. Qxc6 {[%clk 0:01:03.3]}
30... Bxc6 {[%clk 0:00:55.9]} 31. Bxc6 {[%clk 0:01:03.5]} 31... Rad8 {[%clk
0:00:20.6]} 32. Rd1 {[%clk 0:00:58.8]} 32... Re6 {[%clk 0:00:10.7]} 33. Bxb5
{[%clk 0:00:57.3]} 33... Nb6 {[%clk 0:00:11.8]} 34. Rxd3 {[%clk 0:00:53.6]}
34... Rxd3 {[%clk 0:00:11.5]} 35. Bxd3 {[%clk 0:00:55.5]} 35... Rc6 {[%clk
0:00:06.7]} 36. b5 {[%clk 0:00:52.1]} 36... Rc1+ {[%clk 0:00:07.2]} 37. Bg1
{[%clk 0:00:51.8]} 37... Nd5 {[%clk 0:00:06.3]} 38. g3 {[%clk 0:00:50]} 38...
Nb4 {[%clk 0:00:06]} 39. Be2 {[%clk 0:00:46.3]} 39... Re1 {[%clk 0:00:06.6]} 40.
Bf3 {[%clk 0:00:44.2]} 40... Rb1 {[%clk 0:00:07.1]} 41. b6 {[%clk 0:00:41.3]}
41... Nc2 {[%clk 0:00:03]} 42. b7 {[%clk 0:00:42.1]} 42... Na3 {[%clk 0:00:03]}
43. Be4 {[%clk 0:00:40]} 43... Rb2 {[%clk 0:00:02.8]} 44. Ba7 {[%clk 0:00:41.4]}
1-0

[Event "*** Biggest EVER Titled Tuesday"]
[Site "Chess.com"]
[Date "2018.04.17"]
[Round "9"]
[White "ZapataCharlesS"]
[Black "omer1997"]
[Result "1-0"]
[WhiteElo "2719"]
[BlackElo "2133"]
[TimeControl "180+2"]
[EndTime "15:07:25 PDT"]
[Termination "ZapataCharlesS won on time"]

1. e4 {[%clk 0:03:01.9]} 1... e5 {[%clk 0:03:00.8]} 2. Nf3 {[%clk 0:03:02.6]}
2... Nc6 {[%clk 0:03:01.8]} 3. d4 {[%clk 0:03:01.6]} 3... exd4 {[%clk
0:03:01.8]} 4. Bc4 {[%clk 0:03:03.5]} 4... Bc5 {[%clk 0:03:00.5]} 5. c3 {[%clk
0:02:56]} 5... Nf6 {[%clk 0:03:00]} 6. e5 {[%clk 0:02:57]} 6... d5 {[%clk
0:02:58.1]} 7. Bb5 {[%clk 0:02:50.3]} 7... Ne4 {[%clk 0:02:58.2]} 8. cxd4 {[%clk
0:02:51.8]} 8... Bb6 {[%clk 0:02:59.3]} 9. Be3 {[%clk 0:02:50.7]} 9... O-O
{[%clk 0:02:20.7]} 10. O-O {[%clk 0:02:47.9]} 10... Bg4 {[%clk 0:02:15.7]} 11.
Nc3 {[%clk 0:02:26]} 11... Bxf3 {[%clk 0:01:55.2]} 12. gxf3 {[%clk 0:02:24.3]}
12... Ng5 {[%clk 0:01:53.5]} 13. f4 {[%clk 0:02:09.1]} 13... Ne6 {[%clk
0:01:39.5]} 14. Bxc6 {[%clk 0:02:06.6]} 14... bxc6 {[%clk 0:01:41.4]} 15. f5
{[%clk 0:02:00.7]} 15... Nxd4 {[%clk 0:01:16.7]} 16. Bxd4 {[%clk 0:01:59]} 16...
c5 {[%clk 0:01:15.2]} 17. Qg4 {[%clk 0:01:50.5]} 17... cxd4 {[%clk 0:00:52.1]}
18. f6 {[%clk 0:01:51.2]} 18... g6 {[%clk 0:00:53.1]} 19. Nb5 {[%clk 0:01:37.7]}
19... Qe8 {[%clk 0:00:28.9]} 20. Qf4 {[%clk 0:01:26.1]} 20... Kh8 {[%clk
0:00:26.9]} 21. Nxd4 {[%clk 0:01:23.5]} 21... c5 {[%clk 0:00:22.5]} 22. Nf3
{[%clk 0:01:20]} 22... Rg8 {[%clk 0:00:19.2]} 23. Qh6 {[%clk 0:01:18]} 23... g5
{[%clk 0:00:20.3]} 24. Nxg5 {[%clk 0:01:17]} 24... Rxg5+ {[%clk 0:00:18.6]} 25.
Qxg5 {[%clk 0:01:18.9]} 25... Qg8 {[%clk 0:00:15.3]} 26. Qxg8+ {[%clk
0:01:15.1]} 26... Rxg8+ {[%clk 0:00:17.2]} 27. Kh1 {[%clk 0:01:16.9]} 27... Re8
{[%clk 0:00:15.9]} 28. f4 {[%clk 0:01:15.3]} 28... c4 {[%clk 0:00:16.4]} 29.
Rac1 {[%clk 0:01:11.3]} 29... Rd8 {[%clk 0:00:13.7]} 30. Rfd1 {[%clk 0:01:09.5]}
30... h5 {[%clk 0:00:11.3]} 31. Kg2 {[%clk 0:01:06.4]} 31... Kh7 {[%clk
0:00:11.2]} 32. Kf3 {[%clk 0:01:05.8]} 32... Kg6 {[%clk 0:00:12.3]} 33. Rc2
{[%clk 0:00:54]} 33... Kf5 {[%clk 0:00:12]} 34. Rg2 {[%clk 0:00:55.1]} 34... d4
{[%clk 0:00:10.3]} 35. Rg5+ {[%clk 0:00:53.1]} 35... Ke6 {[%clk 0:00:11.4]} 36.
Ke4 {[%clk 0:00:54.6]} 36... d3 {[%clk 0:00:12.6]} 37. f5+ {[%clk 0:00:55.4]}
37... Kd7 {[%clk 0:00:14.1]} 38. Rg7 {[%clk 0:00:48.9]} 38... Kc6 {[%clk
0:00:13.9]} 39. Rxf7 {[%clk 0:00:50.3]} 39... Rd4+ {[%clk 0:00:08.6]} 40. Kf3
{[%clk 0:00:51.3]} 40... Rd5 {[%clk 0:00:08.8]} 41. Re7 {[%clk 0:00:49.6]} 41...
Bc5 {[%clk 0:00:07.2]} 42. Re6+ {[%clk 0:00:49.2]} 42... Kd7 {[%clk 0:00:06.5]}
43. f7 {[%clk 0:00:48.9]} 43... Bf8 {[%clk 0:00:06.8]} 44. Re8 {[%clk
0:00:48.1]} 44... Be7 {[%clk 0:00:04.7]} 45. e6+ {[%clk 0:00:45.8]} 45... Kd6
{[%clk 0:00:05.4]} 46. f8=Q {[%clk 0:00:47.7]} 46... Bxf8 {[%clk 0:00:06]} 47.
Rxf8 {[%clk 0:00:49.6]} 47... Rb5 {[%clk 0:00:05.6]} 48. b3 {[%clk 0:00:49.6]}
48... Ke5 {[%clk 0:00:02.9]} 49. e7 {[%clk 0:00:47.5]} 1-0